{"text_format":"3","workbook":"xlsx","n_sheets":1,"sheets":["Utgiftsrapport"],"not_rendered":{"images":2,"defined_names":12},"read":"whole","date_system":"1900"}

{"sheet":"Utgiftsrapport","index":0,"n_rows":24,"n_cols":13,"rows_kept":24,"merged":[[3,2,3,3],[3,5,3,6],[3,9,3,10],[4,2,4,3],[4,5,4,6],[4,9,4,10],[5,2,5,3],[5,5,5,6],[5,9,5,10],[6,2,6,3],[6,5,6,6],[6,9,6,10],[7,9,7,10]]}
[null,"UTGIFTSRAPPORT"]
[null,"CONTOSO, LTD"]
[null,"123 South Main Street, North Buffalo, NY 12345, USA"]
[null,"TELEFONNUMMER",4255550121,null,"NAVN","Kim Abercrombie",null,null,"FORMÅL","Årlig salgsseminar",null,"KILOMETERSATS",{"v":3,"d":"kr 3.00/kilometer"}]
[null,"FAKS",4255550122,null,"AVDELING","Salg",null,null,"START",{"$f":"IFERROR(MIN(Utgifter[DATO]),\"\")","v":"2018-06-04"},null,"MÅLTIDSSATS",{"v":180,"d":"kr 180.00/dag"}]
[null,"E-POST","info@contoso.com",null,"POSISJON","Administrerende direktør",null,null,"SLUTT",{"$f":"IFERROR(MAX(Utgifter[DATO]),\"\")","v":"2018-07-04"},null,"HOTELLSATS",{"v":1200,"d":"kr 1,200.00/natt"}]
[null,"NETT","www.contoso.com",null,"LEDER","Michael Tucker",null,null,"FORBEREDT AV","Kim Abercrombie",null,"TELEFONSATS",{"v":60,"d":"kr 60.00/dag"}]
[{"$nulls":8},"GODKJENT AV","Michael Tucker",null,"DIVERSE SATS",{"v":300,"d":"kr 300.00/dag"}]
[]
[null,"DATO","KONTO","BESKRIVELSE","HOTELL","REISE","MÅLTIDER","TELEFONNUMMER","DIVERSE","KILOMETERTELLER \nSTART","KILOMETERTELLER \nSLUTT","ANTALL KILOMETER \nTOTAL","TOTAL "]
[null,{"$f":"TODAY()","v":"2018-06-04"},"Salg","Antall kilometer",{"$nulls":4},{"v":300,"d":"kr 300.00"},{"v":11378.5,"d":"11,378.5 kilometer"},{"v":11456.2,"d":"11,456.2 kilometer"},{"$f":"IF(COUNTA(Utgifter[[#This Row],[KILOMETERTELLER \nSTART]:[KILOMETERTELLER \nSLUTT]])=2,(Utgifter[[#This Row],[KILOMETERTELLER \nSLUTT]]-Utgifter[[#This Row],[KILOMETERTELLER \nSTART]])*Kilometersats,\"\")","v":{"v":233.10000000000218,"d":"kr 233.10"}},{"$f":"IF(COUNTA(Utgifter[[#This Row],[DATO]:[KILOMETERTELLER \nSLUTT]])=0,\"\",SUM(Utgifter[[#This Row],[HOTELL]:[REISE]],Utgifter[[#This Row],[MÅLTIDER]:[DIVERSE]],((Utgifter[[#This Row],[KILOMETERTELLER \nSLUTT]]-Utgifter[[#This Row],[KILOMETERTELLER \nSTART]])*(Kilometersats))))","v":{"v":533.1000000000022,"d":"kr 533.10"}}]
[null,{"$f":"TODAY()+30","v":"2018-07-04"},"Salg","Messe",{"v":2670,"d":"kr 2,670.00"},{"v":1350,"d":"kr 1,350.00"},{"v":120,"d":"kr 120.00"},null,{"v":30,"d":"kr 30.00"},{"v":11500,"d":"11,500.0 kilometer"},{"v":11560,"d":"11,560.0 kilometer"},{"$f":"IF(COUNTA(Utgifter[[#This Row],[KILOMETERTELLER \nSTART]:[KILOMETERTELLER \nSLUTT]])=2,(Utgifter[[#This Row],[KILOMETERTELLER \nSLUTT]]-Utgifter[[#This Row],[KILOMETERTELLER \nSTART]])*Kilometersats,\"\")","v":{"v":180,"d":"kr 180.00"}},{"$f":"IF(COUNTA(Utgifter[[#This Row],[DATO]:[KILOMETERTELLER \nSLUTT]])=0,\"\",SUM(Utgifter[[#This Row],[HOTELL]:[REISE]],Utgifter[[#This Row],[MÅLTIDER]:[DIVERSE]],((Utgifter[[#This Row],[KILOMETERTELLER \nSLUTT]]-Utgifter[[#This Row],[KILOMETERTELLER \nSTART]])*(Kilometersats))))","v":{"v":4350,"d":"kr 4,350.00"}}]
[{"$nulls":11},{"$f":"IF(COUNTA(Utgifter[[#This Row],[KILOMETERTELLER \nSTART]:[KILOMETERTELLER \nSLUTT]])=2,(Utgifter[[#This Row],[KILOMETERTELLER \nSLUTT]]-Utgifter[[#This Row],[KILOMETERTELLER \nSTART]])*Kilometersats,\"\")","v":""},{"$f":"IF(COUNTA(Utgifter[[#This Row],[DATO]:[KILOMETERTELLER \nSLUTT]])=0,\"\",SUM(Utgifter[[#This Row],[HOTELL]:[REISE]],Utgifter[[#This Row],[MÅLTIDER]:[DIVERSE]],((Utgifter[[#This Row],[KILOMETERTELLER \nSLUTT]]-Utgifter[[#This Row],[KILOMETERTELLER \nSTART]])*(Kilometersats))))","v":""}]
[{"$nulls":11},{"$f":"IF(COUNTA(Utgifter[[#This Row],[KILOMETERTELLER \nSTART]:[KILOMETERTELLER \nSLUTT]])=2,(Utgifter[[#This Row],[KILOMETERTELLER \nSLUTT]]-Utgifter[[#This Row],[KILOMETERTELLER \nSTART]])*Kilometersats,\"\")","v":""},{"$f":"IF(COUNTA(Utgifter[[#This Row],[DATO]:[KILOMETERTELLER \nSLUTT]])=0,\"\",SUM(Utgifter[[#This Row],[HOTELL]:[REISE]],Utgifter[[#This Row],[MÅLTIDER]:[DIVERSE]],((Utgifter[[#This Row],[KILOMETERTELLER \nSLUTT]]-Utgifter[[#This Row],[KILOMETERTELLER \nSTART]])*(Kilometersats))))","v":""}]
[{"$nulls":11},{"$f":"IF(COUNTA(Utgifter[[#This Row],[KILOMETERTELLER \nSTART]:[KILOMETERTELLER \nSLUTT]])=2,(Utgifter[[#This Row],[KILOMETERTELLER \nSLUTT]]-Utgifter[[#This Row],[KILOMETERTELLER \nSTART]])*Kilometersats,\"\")","v":""},{"$f":"IF(COUNTA(Utgifter[[#This Row],[DATO]:[KILOMETERTELLER \nSLUTT]])=0,\"\",SUM(Utgifter[[#This Row],[HOTELL]:[REISE]],Utgifter[[#This Row],[MÅLTIDER]:[DIVERSE]],((Utgifter[[#This Row],[KILOMETERTELLER \nSLUTT]]-Utgifter[[#This Row],[KILOMETERTELLER \nSTART]])*(Kilometersats))))","v":""}]
[{"$nulls":11},{"$f":"IF(COUNTA(Utgifter[[#This Row],[KILOMETERTELLER \nSTART]:[KILOMETERTELLER \nSLUTT]])=2,(Utgifter[[#This Row],[KILOMETERTELLER \nSLUTT]]-Utgifter[[#This Row],[KILOMETERTELLER \nSTART]])*Kilometersats,\"\")","v":""},{"$f":"IF(COUNTA(Utgifter[[#This Row],[DATO]:[KILOMETERTELLER \nSLUTT]])=0,\"\",SUM(Utgifter[[#This Row],[HOTELL]:[REISE]],Utgifter[[#This Row],[MÅLTIDER]:[DIVERSE]],((Utgifter[[#This Row],[KILOMETERTELLER \nSLUTT]]-Utgifter[[#This Row],[KILOMETERTELLER \nSTART]])*(Kilometersats))))","v":""}]
[{"$nulls":11},{"$f":"IF(COUNTA(Utgifter[[#This Row],[KILOMETERTELLER \nSTART]:[KILOMETERTELLER \nSLUTT]])=2,(Utgifter[[#This Row],[KILOMETERTELLER \nSLUTT]]-Utgifter[[#This Row],[KILOMETERTELLER \nSTART]])*Kilometersats,\"\")","v":""},{"$f":"IF(COUNTA(Utgifter[[#This Row],[DATO]:[KILOMETERTELLER \nSLUTT]])=0,\"\",SUM(Utgifter[[#This Row],[HOTELL]:[REISE]],Utgifter[[#This Row],[MÅLTIDER]:[DIVERSE]],((Utgifter[[#This Row],[KILOMETERTELLER \nSLUTT]]-Utgifter[[#This Row],[KILOMETERTELLER \nSTART]])*(Kilometersats))))","v":""}]
[{"$nulls":11},{"$f":"IF(COUNTA(Utgifter[[#This Row],[KILOMETERTELLER \nSTART]:[KILOMETERTELLER \nSLUTT]])=2,(Utgifter[[#This Row],[KILOMETERTELLER \nSLUTT]]-Utgifter[[#This Row],[KILOMETERTELLER \nSTART]])*Kilometersats,\"\")","v":""},{"$f":"IF(COUNTA(Utgifter[[#This Row],[DATO]:[KILOMETERTELLER \nSLUTT]])=0,\"\",SUM(Utgifter[[#This Row],[HOTELL]:[REISE]],Utgifter[[#This Row],[MÅLTIDER]:[DIVERSE]],((Utgifter[[#This Row],[KILOMETERTELLER \nSLUTT]]-Utgifter[[#This Row],[KILOMETERTELLER \nSTART]])*(Kilometersats))))","v":""}]
[{"$nulls":11},{"$f":"IF(COUNTA(Utgifter[[#This Row],[KILOMETERTELLER \nSTART]:[KILOMETERTELLER \nSLUTT]])=2,(Utgifter[[#This Row],[KILOMETERTELLER \nSLUTT]]-Utgifter[[#This Row],[KILOMETERTELLER \nSTART]])*Kilometersats,\"\")","v":""},{"$f":"IF(COUNTA(Utgifter[[#This Row],[DATO]:[KILOMETERTELLER \nSLUTT]])=0,\"\",SUM(Utgifter[[#This Row],[HOTELL]:[REISE]],Utgifter[[#This Row],[MÅLTIDER]:[DIVERSE]],((Utgifter[[#This Row],[KILOMETERTELLER \nSLUTT]]-Utgifter[[#This Row],[KILOMETERTELLER \nSTART]])*(Kilometersats))))","v":""}]
[{"$nulls":11},{"$f":"IF(COUNTA(Utgifter[[#This Row],[KILOMETERTELLER \nSTART]:[KILOMETERTELLER \nSLUTT]])=2,(Utgifter[[#This Row],[KILOMETERTELLER \nSLUTT]]-Utgifter[[#This Row],[KILOMETERTELLER \nSTART]])*Kilometersats,\"\")","v":""},{"$f":"IF(COUNTA(Utgifter[[#This Row],[DATO]:[KILOMETERTELLER \nSLUTT]])=0,\"\",SUM(Utgifter[[#This Row],[HOTELL]:[REISE]],Utgifter[[#This Row],[MÅLTIDER]:[DIVERSE]],((Utgifter[[#This Row],[KILOMETERTELLER \nSLUTT]]-Utgifter[[#This Row],[KILOMETERTELLER \nSTART]])*(Kilometersats))))","v":""}]
[{"$nulls":11},{"$f":"IF(COUNTA(Utgifter[[#This Row],[KILOMETERTELLER \nSTART]:[KILOMETERTELLER \nSLUTT]])=2,(Utgifter[[#This Row],[KILOMETERTELLER \nSLUTT]]-Utgifter[[#This Row],[KILOMETERTELLER \nSTART]])*Kilometersats,\"\")","v":""},{"$f":"IF(COUNTA(Utgifter[[#This Row],[DATO]:[KILOMETERTELLER \nSLUTT]])=0,\"\",SUM(Utgifter[[#This Row],[HOTELL]:[REISE]],Utgifter[[#This Row],[MÅLTIDER]:[DIVERSE]],((Utgifter[[#This Row],[KILOMETERTELLER \nSLUTT]]-Utgifter[[#This Row],[KILOMETERTELLER \nSTART]])*(Kilometersats))))","v":""}]
[null,"TOTALER",null,null,{"$f":"SUBTOTAL(109,Utgifter[HOTELL])","v":{"v":2670,"d":"kr 2,670.00"}},{"$f":"SUBTOTAL(109,Utgifter[REISE])","v":{"v":1350,"d":"kr 1,350.00"}},{"$f":"SUBTOTAL(109,Utgifter[MÅLTIDER])","v":{"v":120,"d":"kr 120.00"}},{"$f":"SUBTOTAL(109,Utgifter[TELEFONNUMMER])","v":0},{"$f":"SUBTOTAL(109,Utgifter[DIVERSE])","v":{"v":330,"d":"kr 330.00"}},{"$nulls":3},{"$f":"SUBTOTAL(109,Utgifter[[TOTAL ]])","v":{"v":4883.100000000002,"d":"kr 4,883.10"}}]
[{"$nulls":11},"FORSKUDD",{"v":0,"d":"kr 0.00"}]
[{"$nulls":11},"TOTAL",{"$f":"Utgifter[[#Totals],[TOTAL ]]-Forskudd","v":{"v":4883.100000000002,"d":"kr 4,883.10"}}]